Cogmind - Beta 17 @@@ ROGUE MODE // 2026.06.23 @ 13:09:51 Player: 3.14 Result: Self-destructed Performance ------------- Evolutions (2) 1000 Regions Visited (3) 600 Robots Destroyed (31) 155 Value Destroyed (644) 644 Prototype IDs (18) 360 Alien Tech Used (0) 0 Bonus (5435) 5435 TOTAL SCORE: 8194 Bonus ------- Follower Combat Kills 35 Prayed to X0-1V1 5000 Major X0-1V1 Interference 400 Cogmind --------- Core Integrity 663/750 Matter 300/300 Energy 280/280 System Corruption 1% Temperature Cool (0) Movement Walking (125) Location -8/Materials Parts ------- > --- POWER (1) -------- Cooled Ion Engine (fused) > --- PROPULSION (4) --- Aluminum Leg Aluminum Leg Titanium Leg (fused) Titanium Leg (fused) > --- UTILITY (4) ------ Large Storage Unit Improved Sensor Array Improved Utility Shielding X0-1V1's Piety Tracker > --- WEAPON (2) ------- Katana (fused) > --- INVENTORY (15) --- Light Nuclear Core Aluminum Leg Aluminum Leg High-capacity Matter Pod (200) Subdweller Laser Autogun Autogun Scythe Peak State ------------ > --- POWER ------------ Cooled Ion Engine > --- PROPULSION ------- Improved Aluminum Leg Titanium Leg Titanium Leg > --- UTILITY ---------- Self-contained Transmogrifier X0-1V1's Piety Tracker > --- WEAPON ----------- Katana Blade Saw > --- INVENTORY -------- High-capacity Matter Pod Subdweller Laser Autogun Autogun Scythe [Rating: 40] Favorites ----------- Power Ion Engine Engine Ion Engine Power Core Light Nuclear Core Propulsion Light Treads Treads Light Treads Leg Improved Aluminum Leg Utility X0-1V1's Piety Tracker Device X0-1V1's Piety Tracker Storage Small Storage Unit Protection Light Armor Plating Weapon Assault Rifle Energy Gun Beam Rifle Energy Cannon Beam Cannon Ballistic Gun Assault Rifle Ballistic Cannon Light Cannon Slashing Weapon Blade Saw Build | -11 -10 -10 -8 ------- Run | Yrd Mat Sub Mat Slots Evolved 4 | . . . 4 Power . | . . . . Propulsion 2 | . . . 2 Utility 2 | . . . 2 Weapon . | . . . . Parts Attached 40 | 6 12 16 6 Power 4 | 1 2 1 . Engine 4 | 1 2 1 . Core . | . . . . Reactor . | . . . . Propulsion 9 | 2 . 4 3 Treads 2 | 2 . . . Leg 7 | . . 4 3 Wheel . | . . . . Hover . | . . . . Flight . | . . . . Utility 13 | 1 6 3 3 Device 6 | . 2 3 1 Storage 4 | 1 2 . 1 Processor . | . . . . Hackware . | . . . . Protection 3 | . 2 . 1 Artifact . | . . . . Weapon 14 | 2 4 8 . Energy Gun 3 | . 1 2 . Energy Cannon 1 | . 1 . . Ballistic Gun 8 | 2 1 5 . Ballistic Cannon 2 | . 1 1 . Launcher . | . . . . Special Weapon . | . . . . Impact Weapon . | . . . . Slashing Weapon . | . . . . Piercing Weapon . | . . . . Special Melee Weapon . | . . . . Unidentified Prototypes 2 | . 1 1 . Parts Lost 8 | . 1 5 2 Power . | . . . . Propulsion 3 | . . 2 1 Utility 3 | . 1 2 . Weapon 2 | . . 1 1 Highest Loss Streak 2 | . 1 2 2 To Critical Strikes . | . . . . Average Backups 7 | 2 7 9 5 Power . | . 1 . . Propulsion 1 | 1 2 1 . Utility . | . . 1 1 Weapon 4 | . 3 6 3 Tool/Special . | . . . . Unused Backups 15 | . 5 5 5 Power 2 | . . 1 1 Propulsion 3 | . 2 . 1 Utility 1 | . . . 1 Weapon 9 | . 3 4 2 Tool/Special . | . . . . Average Slot Usage (%) 92 | . 91 97 84 Engine 13 | . 14 13 9 Treads 15 | . 28 3 . Leg 12 | . . 24 32 Device 9 | . 1 19 15 Storage 11 | . 14 6 7 Protection 2 | . 3 . 4 Energy Gun 2 | . 1 5 . Ballistic Gun 16 | . 21 16 . Ballistic Cannon 2 | . 4 1 . Slashing Weapon 3 | . . 4 14 Peak Build Rating 40 | 6 23 37 40 Average Rating 17 | 4 7 28 35 On Entrance 16 | . 6 23 37 Avg Prop Armor Cover (%) . | . . . . Naked Turns . | . . . . Heaviest Build 70 | 12 70 54 36 Greatest Support 57 | 40 40 40 57 Greatest Overweight (x) 3 | 1 1 3 . Average Overweight (x) . | . . . . Largest Inventory Capacity 20 | 8 20 20 15 Average Capacity 12 | 6 12 12 13 Most Carried 17 | 4 17 16 8 Average Carried 7 | 2 7 9 5 Final Capacity 20 | 8 20 5 15 Final Carried 16 | 4 16 5 8 Transmogrified Parts 7 | . . 7 . Integrity Recovered 36 | . . 36 . Class Distribution -------------------- 100% | Mutant Dominant Class ---------------- Mutant | -10/Materials Mutant | -10/Subcaves Mutant | -8/Materials Resources | -11 -10 -10 -8 ----------- Run | Yrd Mat Sub Mat Matter Collected 1115 | 272 275 201 367 Remotely . | . . . . Salvage Created 1050 | 76 380 151 443 Parts 55 | 4 21 13 17 Haulers Intercepted 1 | . 1 . . Recyclers Shooed . | . . . . Parts Field Recycled . | . . . . Retrieved Matter . | . . . . Parts Self-Destructed 12 | . . 12 . Prevented . | . . . . Parts Restored . | . . . . Kills | -11 -10 -10 -8 ------- Run | Yrd Mat Sub Mat Combat Hostiles Destroyed 25 | . 9 10 6 Melee 6 | . . . 6 Guns 16 | . 6 10 . Cannons 3 | . 3 . . Classes Destroyed 6 | 1 4 . 1 Hauler 1 | . 1 . . Recycler 4 | 1 1 . 2 Operator 1 | . 1 . . Swarmer 15 | . 5 10 . Grunt 9 | . 4 . 5 Sentry 1 | . . . 1 Best Kill Streak 5 | 1 5 4 4 Combat Bots Only 4 | . 4 4 2 Max Kills in Single Turn 2 | 1 1 2 1 Gunslinging 1 | . . 1 . Exploded . | . . . . Melee 1 | . . . 1 Uniques/NPCs Destroyed . | . . . . Combat | -11 -10 -10 -8 -------- Run | Yrd Mat Sub Mat Hostile Shots Fired 198 | . 54 94 50 Missed 60 | . 17 35 8 Hits 138 | . 37 59 42 Projectile 138 | . 37 59 42 Critical Strikes 1 | . 1 . . Damage Taken 1565 | . 390 692 483 Core 243 | . 55 101 87 Absorbed by Shields . | . . . . Core Remaining (%) 82 | 100 . 65 . Volleys Fired 60 | 2 38 20 . Largest 2 | 2 2 2 . Hottest 79 | 40 79 79 . Shots Fired 115 | 4 74 37 . Gun 96 | 4 56 36 . Cannon 19 | . 18 1 . Launcher . | . . . . Special . | . . . . Kinetic 96 | 4 71 21 . Thermal 18 | . 3 15 . Explosive . | . . . . Electromagnetic 1 | . . 1 . Robot Hit Streak 9 | 1 9 6 . Robot Miss Streak 4 | 1 3 4 . Penetration Max . | . . . . Secondary Targets 4 | . . 4 . Max Gunslinging Chain 1 | . . 1 . Shots Hit Robots 86 | 2 47 16 21 Core Hits 42 | 1 22 10 9 Critical Kills . | . . . . Critical Parts Destroyed . | . . . . Critical Strikes 2 | . . . 2 Sever 2 | . . . 2 Melee Attacks 31 | . . 1 30 Impact . | . . . . Slashing 31 | . . 1 30 Piercing . | . . . . Sneak Attacks 3 | . . . 3 Combat Hostiles 1 | . . . 1 Follow-up Attacks . | . . . . Damage Inflicted 1734 | 30 698 246 760 Guns 765 | 30 489 246 . Cannons 178 | . 178 . . Explosions . | . . . . Melee 760 | . . . 760 Ramming 31 | . 31 . . Kinetic 843 | 30 653 160 . Thermal 92 | . 14 78 . Explosive . | . . . . Electromagnetic 8 | . . 8 . Impact . | . . . . Slashing 760 | . . . 760 Piercing . | . . . . Highest Corruption 1 | . . . 1 Average Corruption 1 | . . . 1 Corruption Purged . | . . . . Corruption Blocked . | . . . . Overload Shots . | . . . . Overflow Damage 19 | . . . 19 Projectiles . | . . . . Explosions . | . . . . Melee 19 | . . . 19 Knockbacks 4 | . 4 . . Impact . | . . . . Kinetic 4 | . 4 . . Secondary . | . . . . Self-Inflicted Damage . | . . . . Shots . | . . . . Rammed 7 | . 7 . . Targets Rammed 7 | . 7 . . Kicked . | . . . . Crushed . | . . . . Highest Temperature 40 | . 40 . . Average Temperature 7 | . 7 . . Received Heat Transfer 411 | . 144 114 153 Siege Activations . | . . . . Martial Activations . | . . . . Shielding Activations . | . . . . Robots Disrupted . | . . . . Combat Hostiles . | . . . . Robots Corrupted . | . . . . Combat Hostiles . | . . . . Parts Fried . | . . . . Impact Corruptions . | . . . . Robots Melted . | . . . . Combat Hostiles . | . . . . Parts Melted . | . . . . Heat Transferred 222 | . 37 185 . Parts Sabotaged . | . . . . Parts Stolen . | . . . . Parts Stripped . | . . . . Power Chain Reactions . | . . . . Alert | -11 -10 -10 -8 ------- Run | Yrd Mat Sub Mat Maximum Alert Level . | . . . . Low Security (%) 100 | 100 100 . 100 Level 1 . | . . . . Level 2 . | . . . . Level 3 . | . . . . Level 4 . | . . . . Level 5 . | . . . . High Security . | . . . . Max Security . | . . . . Peak Influence 109 | 5 109 . 36 Initial 2 | . . . 2 Average 28 | . 35 . 10 Influence Increases 821 | 5 314 325 177 Destroy 0b10 Robot/C 520 | . 180 200 140 Destroy 0b10 Robot/NC 30 | 5 15 . 10 Destroy Leader 72 | . 32 20 20 Allied During Kill 7 | . . . 7 Successful Hack 42 | . 42 . . Disable Machine 15 | . 15 . . Lose Combat Pursuer 135 | . 30 105 . Influence Decreases 821 | 5 276 358 182 Entered New Map 22 | . . 19 3 Time Decay 683 | 5 266 299 113 Lost Part 70 | . 10 40 20 Lost Ally 46 | . . . 46 Squads Dispatched 1 | . . . 1 Investigation . | . . . . Extermination . | . . . . Reinforcement 1 | . . . 1 Assault . | . . . . Garrison . | . . . . Intercept . | . . . . Searches Triggered . | . . . . Construction Impeded . | . . . . Haulers Reinforced . | . . . . Active Scanning Responses . | . . . . Cargo Convoy Interrupts . | . . . . Stealth | -11 -10 -10 -8 --------- Run | Yrd Mat Sub Mat Distress Signals 2 | . . . 2 Communications Jammed . | . . . . Distress Signals . | . . . . Times Spotted 49 | . 19 16 14 Peak Tracking Total 6 | . 5 6 6 Tactical Retreats 5 | . 2 3 . Traps | -11 -10 -10 -8 ------- Run | Yrd Mat Sub Mat Traps Triggered 5 | . 1 4 . Indirectly . | . . . . Trap Hack Attempts . | . . . . Triggered . | . . . . Disarmed . | . . . . Reprogrammed . | . . . . Reused . | . . . . Traps Extracted . | . . . . Installed . | . . . . Triggered . | . . . . Machines | -11 -10 -10 -8 ---------- Run | Yrd Mat Sub Mat Machines Disabled 1 | . 1 . . Max in Single Turn 1 | . 1 . . Machines Repaired . | . . . . Machines Dismantled . | . . . . Machines Sabotaged . | . . . . Overloaded Fab Kills . | . . . . Hacking | -11 -10 -10 -8 --------- Run | Yrd Mat Sub Mat Machines Accessed 9 | . 7 1 1 Terminals 8 | . 7 . 1 Fabricators . | . . . . Repair Stations . | . . . . Recycling Units . | . . . . Scanalyzers . | . . . . Garrison Access . | . . . . Total Hacks 24 | . 21 1 2 Successful 15 | . 13 1 1 Failed 9 | . 8 . 1 Catastrophic 3 | . 2 . 1 Database Lockouts . | . . . . Manual 22 | . 20 . 2 Terminals 23 | . 21 . 2 Fabricators . | . . . . Repair Stations . | . . . . Recycling Units . | . . . . Scanalyzers . | . . . . Garrison Access . | . . . . Terminal Hacks 5 | . 4 1 . Robot Analysis 3 | . 3 . . Prototype ID Bank 1 | . 1 . . Proto ID Catalog 1 | . . 1 . Fabricator Hacks . | . . . . Repair Station Hacks . | . . . . Recycling Unit Hacks . | . . . . Scanalyzer . | . . . . Garrison Access Hacks . | . . . . Unauthorized Hacks 10 | . 9 . 1 Terminals 10 | . 9 . 1 Botnet 3 | . 3 . . Operators 1 | . 1 . . Skim 6 | . 5 . 1 Fabricators . | . . . . Repair Stations . | . . . . Recycling Units . | . . . . Scanalyzers . | . . . . Garrison Access . | . . . . Data Cores Recovered . | . . . . Used . | . . . . Hacking Detections 6 | . 5 . 1 Full Trace Events . | . . . . Feedback Events . | . . . . Feedback Blocked . | . . . . Robot Schematics Acquired . | . . . . Robots Built . | . . . . Authchips . | . . . . Time . | . . . . Total Robot Build Rating . | . . . . Part Schematics Acquired . | . . . . Parts Built . | . . . . Authchips . | . . . . Time . | . . . . Total Part Build Rating . | . . . . Part Studies Acquired . | . . . . Parts Repaired . | . . . . Time . | . . . . Parts Recycled . | . . . . Recycled Matter . | . . . . Retrieved Matter . | . . . . Retrieved Components . | . . . . Parts Scanalyzed . | . . . . Part Schematics Acquired . | . . . . Parts Damaged . | . . . . Bothacking | -11 -10 -10 -8 ------------ Run | Yrd Mat Sub Mat Used RIF Installer . | . . . . Robots Hacked . | . . . . Non-combat . | . . . . Combat . | . . . . Robot Hacks Applied . | . . . . Relay Couplers Released . | . . . . Fabnet Peak Effective % . | . . . . Robots Rewired . | . . . . Allies Hacked . | . . . . Hacks Repelled . | . . . . Allies | -11 -10 -10 -8 -------- Run | Yrd Mat Sub Mat Total Allies 4 | . . . 4 Largest Group 4 | . . . 4 Highest-Rated Group 72 | . . . 72 Highest-Rated Ally 18 | . . . 18 Total Orders . | . . . . Ally Attacks 13 | . . . 13 Total Damage 347 | . . . 347 Kills 1 | . . . 1 Allies Corrupted . | . . . . Allies Melted 1 | . . . 1 X0-1V1 Amusement Gains 55 | . 17 38 . Good Acts 3 | . . 2 1 Bad Acts 3 | . . . 3 Intel | -11 -10 -10 -8 ------- Run | Yrd Mat Sub Mat Active Infowar (turns) 214 | . . . 214 Sensors 214 | . . . 214 Robot Analysis Total 3 | . 3 . . Derelict Logs Recovered . | . . . . Drone Launches . | . . . . Drone Recoveries . | . . . . Exploration | -11 -10 -10 -8 ------------- Run | Yrd Mat Sub Mat Turns Passed 2330 | 95 1189 691 355 Spaces Moved 1160 | 53 512 396 199 Core 8 | 8 . . . Treads 587 | 45 512 30 . Legs 565 | . . 366 199 Wheels . | . . . . Hover . | . . . . Flight . | . . . . Fastest Speed 50 | 50 160 120 125 Average Speed 160 | 146 182 151 125 Slowest Speed 330 | 160 240 330 126 Overloaded Moves . | . . . . Propulsion Burnouts . | . . . . Robots Hopped . | . . . . Potential Cave-ins . | . . . . Cave-ins Triggered . | . . . . Exploration Rate (%) 33 | 4 86 15 27 Regions Visited 3 Branch Regions 1 Pre-discovered Areas 2 | . 2 . . Known Exits Taken 2 | . 1 1 . Unknown Exits Taken 1 | 1 . . . Scrap Searched 3 | . . 3 . Spaces Dug . | . . . . Terrain Destroyed . | . . . . Melee . | . . . . Projectile . | . . . . AOE . | . . . . Terrain Rammed . | . . . . Walls Destroyed . | . . . . Machines Disabled . | . . . . Actions | -11 -10 -10 -8 --------- Run | Yrd Mat Sub Mat Total 1465 | 64 690 451 260 Wait 112 | . 87 2 23 Move 1157 | 52 511 395 199 Hop . | . . . . Pick Up 32 | 4 19 6 3 Fast Attach 22 | 6 6 5 5 Attach 8 | . 2 5 1 Detach . | . . . . Swap 15 | . 7 7 1 Drop 24 | . 13 10 1 Fire 60 | 2 38 20 . Melee 28 | . . 1 27 Ram . | . . . . Kick . | . . . . Crush 7 | . 7 . . Escape Stasis . | . . . . Rewire . | . . . . Trap . | . . . . Miscellaneous . | . . . . Route ------- -11/Scrapyard -10/Materials (discovered 5 exits: *Mat x3 / [*Min] / *Sub) -10/Subcaves (discovered 3 exits: *Mat x2 / [*Rec]) -8/Materials History --------- Turn | Location | Event 8 | -11/Scrapyard | Discovered new exit (range 15) 96 | -11/Scrapyard | Entered Materials 283 | -10/Materials | Discovered new exit (range 15) 336 | -10/Materials | Build established: Mutant 787 | -10/Materials | Discovered new exit (range 8) 883 | -10/Materials | Discovered new exit (range 12) 1125 | -10/Materials | Learned Recycling recycling unit intel 1157 | -10/Materials | Identified exit to Materials 1157 | -10/Materials | Identified exit to Subcaves 1186 | -10/Materials | Learned location of Mines (-10) 1188 | -10/Materials | Learned location of Storage (-7) 1194 | -10/Materials | Learned Storage garrison access intel 1277 | -10/Materials | Prayed at D.C.S.S. Altar Unit 1285 | -10/Materials | Entered Subcaves 1286 | -10/Subcaves | Identified exit to Materials 1353 | -10/Subcaves | Discovered new exit (range 11) 1376 | -10/Subcaves | Core integrity permanently improved by X0-1V1 (+200) 1587 | -10/Subcaves | Visited 4L-MR0's lab 1605 | -10/Subcaves | Found Prototype Device 1611 | -10/Subcaves | Identified Sfc. Transmogrifier 1714 | -10/Subcaves | Shifting Twisted Machinery released Sub. Laser 1714 | -10/Subcaves | Shifting Twisted Machinery released Sub. Monowheel 1976 | -10/Subcaves | Entered Materials 1976 | -8/Materials | Evolved 4 slots: Propulsion x2, Utility x2 2046 | -8/Materials | X0-1V1 sent allied L-31 Rogue (x4) 2137 | -8/Materials | Lost 3 allies 2331 | -8/Materials | Self-destructed Last Messages --------------- 02225_ R-06 Scavenger collects Aluminum Leg. 02225_ Acquired 48 matter. 02228_ Sneak attack on R-06 Scavenger. 02228_ R-06 Scavenger destroyed. 02230_ Acquired 62 matter. 02230_ R-06 Scavenger collects Particle Gun. 02233_ Acquired Aluminum Leg. 02233_ R-06 Scavenger collects Imp. Heat Sink. 02234_ Sneak attack on R-06 Scavenger. 02234_ R-06 Scavenger destroyed. 02237_ Acquired 10 matter. 02241_ K-01 Serf collects debris. 02285_ G-47 Trooper destroyed. 02295_ Acquired Lgt. Nuclear Core. 02296_ Acquired 10 matter. 02310_ U-05 Engineer works on Atomic Centrifuge. 02322_ K-01 Serf cleans the Terminal. 02327_ U-05 Engineer completes Atomic Centrifuge. 02330_ K-01 Serf cleans the Terminal. 02330_ Slug penetrates Wall. Map ----- +----------------------------------------------------+ | ?????????????????????????????????????????????????? | | ?????????????????????????????????????????????????? | | ?????????????????????????????????????????????????? | | ?????????????????????????????????????????????????? | | ?????????????????????????????????????????????????? | | ?????????????????????????????????????????????????? | | ?????????????????????????????????????????????????? | | ?????????????????????????????????????????????????? | | ?????????????????????????????????????????????????? | | ?????????????????????????????????????????????????? | | ?????????????????????????????? ??????????????????? | | ?????????????????????????????? ??????????????????? | | ?????????????????????????????? ??????????????????? | | ?????????????????????????????? ??????????????????? | | ?????????????????????????????? ??????????????????? | | ?????????????????????????????? ??????????????????? | | ?????????????????????????????? ??????????????????? | | ?????????????????????????????# #?????????????????? | | ?????????????????????????????# #?????????????????? | | ?????????????????????????????# #?????????????????? | | ???????????????????########??# #?????????????????? | | ???????????????????# #??# #?????????????????? | | ???????????????????# """ #??# #?????????????????? | | ???????????????????# """ #??# #########?????????? | | ???????????????????# """ #### ###+??????? | | ???????????????????# @# ??? | | ???????????????????# """ s ??? | | ???????????? ??????# """ # "" ??? | | ????????????? ?????# """ # "T ???? | | ?????????????? ???# # "" ???? | | ??????????????? ??# """ # k ????? | | ???????????????# ??# """ # ????? | | ???????????????# ?# """ # ????? | | ???????????????# # % # "<< ?????? | | ???????????????+ #####s## ""u ?????? | | ???????????????# "" ??????? | | ???????????????# ##??????? | | ???????????????# """ #???????? | | ???????????????# "Y" """ """ #???????? | | ???????????????# """ "" +???????? | | ???????????????# """ """ #???????? | | ???????????????#^ #???????? | | ???????????????# """ #??###### | | ???????????????# """ #??# | | ???????????????# """ #??# | | ????????######## ^ ############ #??# """ | | ????????? # #??????????# #??# """ | | ?????????"""" #% """ #??????????# #??# """ | | ????????""""" # %""" #??????????# #??# | | ????????""""" # %""" #???????#### #### | +----------------------------------------------------+ Best States ------------- Heat Dissipation 39 Energy Generation 14 Energy Capacity 280 Matter Stores 300 Matter Capacity 300 Sight Range 16 Robot Scan Range 15 Terrain Scan Density 10 Armor Coverage 150 Core Shielding 20 Utility Shielding 66 Evasion (%) 55 Recoil Reduction 2 Item Schematics ----------------- None Robot Schematics ------------------ None Fabricated ------------ Nothing Repaired ---------- Nothing Studied --------- None Alien Tech Used ----------------- None Achievements -------------- None Challenges ------------ None Game ------ Seed UltimateTerrorObfuscator Manual? 0 Play Time 00:15:25 Cumulative 952.6 hours Start 2026.06.23 @ 12:53:52 End 2026.06.23 @ 13:09:51 Sessions 1 Manual Loads 0 Difficulty Rogue Special Mode None Game No. 1629 Rogue 1629 Adventurer 0 Explorer 0 Win Type - Total 93 Types 55/1/16/15/4/0/0/1/0/1 Lore% 92 Gallery% 79 Achievement% 65 Wizard Run 0 Options --------- Layout 0 ASCII 1 Keyboard 0 Movement Numpad Keybinds 1 Fullscreen 2 Font 18/SmallcapsGlow Map View 76x50 Zoom Use 0% Tactical HUD 1 Map Filters NONE Filters NONE Steam 1 RUN: 23d0a294-5ecd-4fbb-89f4-b4323e2704d3